[Event "Late-Titled-Tuesday-Blitz-February-13-2024"]
[Site "Chess.com"]
[Date "2024.02.13"]
[Round "5"]
[White "Lucas_Tomiello"]
[Black "sharkarton"]
[Result "1/2-1/2"]
[WhiteElo "2685"]
[BlackElo "2518"]
[TimeControl "180+1"]
[EndTime "14:55:57 PST"]
[Termination "Game drawn by repetition"]

1. e4 {[%clk 0:03:00.9]} 1... c5 {[%clk 0:02:55.8]} 2. Nf3 {[%clk 0:03:01]} 2...
e6 {[%clk 0:02:56.2]} 3. Nc3 {[%clk 0:03:01.1]} 3... Nc6 {[%clk 0:02:55.7]} 4.
Bb5 {[%clk 0:02:58.6]} 4... Nd4 {[%clk 0:02:50.4]} 5. Nxd4 {[%clk 0:02:56.9]}
5... cxd4 {[%clk 0:02:51.3]} 6. Ne2 {[%clk 0:02:57.6]} 6... Qg5 {[%clk
0:02:31.5]} 7. Bc4 {[%clk 0:02:10]} 7... Qxg2 {[%clk 0:02:05.1]} 8. Ng3 {[%clk
0:02:08.4]} 8... Qh3 {[%clk 0:01:59.7]} 9. d3 {[%clk 0:02:04]} 9... Nf6 {[%clk
0:01:45.8]} 10. Bd2 {[%clk 0:01:57.8]} 10... Be7 {[%clk 0:01:42.5]} 11. Qe2
{[%clk 0:01:53.2]} 11... a6 {[%clk 0:01:34.1]} 12. e5 {[%clk 0:01:38.2]} 12...
Ng4 {[%clk 0:01:30.3]} 13. f3 {[%clk 0:01:35.2]} 13... Nh6 {[%clk 0:01:30.2]}
14. O-O-O {[%clk 0:01:25.1]} 14... b5 {[%clk 0:01:29.1]} 15. Bb3 {[%clk
0:01:24]} 15... a5 {[%clk 0:01:23.4]} 16. a4 {[%clk 0:01:24.3]} 16... Bb7 {[%clk
0:01:16]} 17. Rhg1 {[%clk 0:01:21.3]} 17... g6 {[%clk 0:01:07.3]} 18. Ne4 {[%clk
0:01:16.5]} 18... Nf5 {[%clk 0:01:00.4]} 19. Kb1 {[%clk 0:01:02.8]} 19... Bc6
{[%clk 0:00:55.6]} 20. axb5 {[%clk 0:01:00.5]} 20... Bxb5 {[%clk 0:00:56.5]} 21.
Bg5 {[%clk 0:00:50.9]} 21... Bxg5 {[%clk 0:00:36.4]} 22. Rxg5 {[%clk 0:00:51.8]}
22... a4 {[%clk 0:00:36.2]} 23. Bc4 {[%clk 0:00:47.5]} 23... Bxc4 {[%clk
0:00:25.1]} 24. dxc4 {[%clk 0:00:48.4]} 24... O-O {[%clk 0:00:24.9]} 25. Nf6+
{[%clk 0:00:48.6]} 25... Kh8 {[%clk 0:00:22.7]} 26. Nxd7 {[%clk 0:00:35.6]}
26... Rfd8 {[%clk 0:00:22.3]} 27. Nb6 {[%clk 0:00:35.8]} 27... Ra6 {[%clk
0:00:17.9]} 28. c5 {[%clk 0:00:36.1]} 28... Ra5 {[%clk 0:00:15.3]} 29. Qc4
{[%clk 0:00:24.5]} 29... Ne3 {[%clk 0:00:15]} 30. Qb4 {[%clk 0:00:24.9]} 30...
Rxc5 {[%clk 0:00:11.7]} 31. Rxd4 {[%clk 0:00:22.3]} 31... Qf1+ {[%clk
0:00:03.5]} 32. Ka2 {[%clk 0:00:22.6]} 32... Rxd4 {[%clk 0:00:02.5]} 33. Qxd4
{[%clk 0:00:18]} 33... Qb5 {[%clk 0:00:03.1]} 34. Qd8+ {[%clk 0:00:17.2]} 34...
Kg7 {[%clk 0:00:03.7]} 35. Qf6+ {[%clk 0:00:15.3]} 35... Kg8 {[%clk 0:00:04.2]}
36. Qd8+ {[%clk 0:00:14.2]} 36... Kg7 {[%clk 0:00:04.1]} 37. Qf6+ {[%clk
0:00:08.6]} 37... Kg8 {[%clk 0:00:04.1]} 38. Qd8+ {[%clk 0:00:05.6]} 38... Kg7
{[%clk 0:00:03.8]} 1/2-1/2

[Event "Late-Titled-Tuesday-Blitz-February-13-2024"]
[Site "Chess.com"]
[Date "2024.02.13"]
[Round "5"]
[White "Dewarfd"]
[Black "SouS007"]
[Result "0-1"]
[WhiteElo "2164"]
[BlackElo "2485"]
[TimeControl "180+1"]
[EndTime "14:55:57 PST"]
[Termination "SouS007 won by resignation"]

1. d4 {[%clk 0:02:59.1]} 1... Nf6 {[%clk 0:02:59.6]} 2. e3 {[%clk 0:02:57.6]}
2... d5 {[%clk 0:02:59.1]} 3. Nf3 {[%clk 0:02:57.6]} 3... c5 {[%clk 0:02:58.8]}
4. dxc5 {[%clk 0:02:57.5]} 4... e6 {[%clk 0:02:58.4]} 5. c4 {[%clk 0:02:57]}
5... Bxc5 {[%clk 0:02:57.3]} 6. cxd5 {[%clk 0:02:57.4]} 6... exd5 {[%clk
0:02:58.2]} 7. Be2 {[%clk 0:02:56.8]} 7... O-O {[%clk 0:02:57.8]} 8. O-O {[%clk
0:02:56.9]} 8... Nc6 {[%clk 0:02:57.8]} 9. a3 {[%clk 0:02:57]} 9... Re8 {[%clk
0:02:53.3]} 10. b4 {[%clk 0:02:56]} 10... Bb6 {[%clk 0:02:53]} 11. Bb2 {[%clk
0:02:56.2]} 11... Ne4 {[%clk 0:02:51.4]} 12. Nc3 {[%clk 0:02:56]} 12... Be6
{[%clk 0:02:40.9]} 13. Nxe4 {[%clk 0:02:42.5]} 13... dxe4 {[%clk 0:02:41.8]} 14.
Qxd8 {[%clk 0:02:42]} 14... Raxd8 {[%clk 0:02:38.5]} 15. Nd4 {[%clk 0:02:03.2]}
15... Nxd4 {[%clk 0:02:36.9]} 16. exd4 {[%clk 0:02:03.9]} 16... Bxd4 {[%clk
0:02:37.7]} 17. Bxd4 {[%clk 0:02:03.8]} 17... Rxd4 {[%clk 0:02:38.6]} 18. Rfd1
{[%clk 0:01:58.3]} 18... Red8 {[%clk 0:02:34.2]} 19. Kf1 {[%clk 0:01:56.7]}
19... f5 {[%clk 0:02:12.2]} 20. Ke1 {[%clk 0:01:53.1]} 20... Rxd1+ {[%clk
0:02:07.1]} 21. Rxd1 {[%clk 0:01:48.3]} 21... Rxd1+ {[%clk 0:02:05.1]} 22. Kxd1
{[%clk 0:01:49.2]} 22... Kf7 {[%clk 0:02:04.1]} 23. Kd2 {[%clk 0:01:43.9]} 23...
f4 {[%clk 0:01:58.8]} 24. g3 {[%clk 0:01:42.1]} 24... g5 {[%clk 0:01:57.7]} 25.
Kc3 {[%clk 0:01:31.1]} 25... Bf5 {[%clk 0:01:13.6]} 26. Kd4 {[%clk 0:01:28.8]}
26... Ke6 {[%clk 0:01:11.8]} 27. Bc4+ {[%clk 0:01:25.4]} 27... Kd6 {[%clk
0:01:11.4]} 28. Bf7 {[%clk 0:00:56.2]} 28... b6 {[%clk 0:00:52.7]} 29. b5 {[%clk
0:00:43.4]} 29... e3 {[%clk 0:00:42.4]} 30. fxe3 {[%clk 0:00:35.2]} 30... f3
{[%clk 0:00:38.4]} 31. Bc4 {[%clk 0:00:29.6]} 31... Bh3 {[%clk 0:00:36.9]} 32.
e4 {[%clk 0:00:23.2]} 32... f2 {[%clk 0:00:36.7]} 33. e5+ {[%clk 0:00:23.2]}
33... Ke7 {[%clk 0:00:33.7]} 34. Ke4 {[%clk 0:00:22.6]} 34... f1=Q {[%clk
0:00:30.7]} 35. Bxf1 {[%clk 0:00:22.4]} 35... Bxf1 {[%clk 0:00:31.6]} 36. Kf5
{[%clk 0:00:22.7]} 36... Bxb5 {[%clk 0:00:31]} 37. Kxg5 {[%clk 0:00:22.9]} 37...
Ke6 {[%clk 0:00:30.8]} 38. Kh6 {[%clk 0:00:20.5]} 38... Bd3 {[%clk 0:00:30.5]}
39. h4 {[%clk 0:00:19.9]} 39... b5 {[%clk 0:00:28.2]} 40. g4 {[%clk 0:00:20.8]}
40... a5 {[%clk 0:00:27.8]} 41. g5 {[%clk 0:00:21.3]} 41... b4 {[%clk
0:00:27.1]} 42. h5 {[%clk 0:00:21.1]} 42... bxa3 {[%clk 0:00:25.3]} 43. Kg7
{[%clk 0:00:21]} 43... a2 {[%clk 0:00:21.1]} 44. g6 {[%clk 0:00:21.9]} 44...
Bxg6 {[%clk 0:00:20.5]} 45. hxg6 {[%clk 0:00:21.5]} 45... hxg6 {[%clk 0:00:21]}
46. Kxg6 {[%clk 0:00:22.4]} 46... a1=Q {[%clk 0:00:20.4]} 0-1

[Event "Late-Titled-Tuesday-Blitz-February-13-2024"]
[Site "Chess.com"]
[Date "2024.02.13"]
[Round "5"]
[White "VladimirBugayev"]
[Black "Chemim21"]
[Result "1-0"]
[WhiteElo "2397"]
[BlackElo "2233"]
[TimeControl "180+1"]
[EndTime "14:55:57 PST"]
[Termination "VladimirBugayev won on time"]

1. e4 {[%clk 0:03:00.9]} 1... e6 {[%clk 0:03:00]} 2. d4 {[%clk 0:03:00.6]} 2...
d5 {[%clk 0:03:00.4]} 3. Bd3 {[%clk 0:03:01.2]} 3... c5 {[%clk 0:02:58.2]} 4.
exd5 {[%clk 0:03:01.1]} 4... Qxd5 {[%clk 0:02:56.4]} 5. Nc3 {[%clk 0:03:00.4]}
5... Qxd4 {[%clk 0:02:52]} 6. Nb5 {[%clk 0:02:57.8]} 6... Qd8 {[%clk 0:02:41.9]}
7. Bf4 {[%clk 0:02:57.3]} 7... Na6 {[%clk 0:02:37.3]} 8. Qe2 {[%clk 0:02:57.8]}
8... Be7 {[%clk 0:02:30.7]} 9. O-O-O {[%clk 0:02:56.8]} 9... Qb6 {[%clk
0:02:26.1]} 10. Bc4 {[%clk 0:02:37.6]} 10... Nf6 {[%clk 0:02:12.3]} 11. Bd6
{[%clk 0:02:34.6]} 11... Bd7 {[%clk 0:01:59.1]} 12. Bxe7 {[%clk 0:02:34.4]}
12... Bxb5 {[%clk 0:01:47.2]} 13. Bxf6 {[%clk 0:01:59.9]} 13... Bxc4 {[%clk
0:01:46.9]} 14. Qxc4 {[%clk 0:02:00.5]} 14... gxf6 {[%clk 0:01:47.1]} 15. Qh4
{[%clk 0:01:51.4]} 15... Ke7 {[%clk 0:01:39.3]} 16. Nf3 {[%clk 0:01:49.5]} 16...
Qb4 {[%clk 0:01:34.5]} 17. Qh6 {[%clk 0:01:41.6]} 17... Qg4 {[%clk 0:01:29]} 18.
Qe3 {[%clk 0:01:33.5]} 18... Rhd8 {[%clk 0:01:20.8]} 19. g3 {[%clk 0:01:18.7]}
19... Rxd1+ {[%clk 0:01:15.9]} 20. Rxd1 {[%clk 0:01:18.9]} 20... Rd8 {[%clk
0:01:15.1]} 21. Re1 {[%clk 0:01:19]} 21... Qc4 {[%clk 0:01:03.7]} 22. b3 {[%clk
0:01:11.1]} 22... Qb4 {[%clk 0:01:01.6]} 23. Kb2 {[%clk 0:01:11.3]} 23... c4
{[%clk 0:01:00]} 24. c3 {[%clk 0:00:58.8]} 24... Qc5 {[%clk 0:00:56.4]} 25. b4
{[%clk 0:00:54.8]} 25... Qxe3 {[%clk 0:00:55.3]} 26. Rxe3 {[%clk 0:00:55.7]}
26... b5 {[%clk 0:00:52.2]} 27. Nd4 {[%clk 0:00:54.2]} 27... Nc7 {[%clk
0:00:52.6]} 28. Nc6+ {[%clk 0:00:54.1]} 28... Kd7 {[%clk 0:00:49.5]} 29. Nxd8
{[%clk 0:00:51.9]} 29... Kxd8 {[%clk 0:00:49.8]} 30. Re4 {[%clk 0:00:51.8]}
30... Nd5 {[%clk 0:00:41.5]} 31. Rh4 {[%clk 0:00:51.5]} 31... Nb6 {[%clk
0:00:36.4]} 32. Rxh7 {[%clk 0:00:50.6]} 32... Na4+ {[%clk 0:00:37.3]} 33. Kc2
{[%clk 0:00:50.3]} 33... Ke7 {[%clk 0:00:38.2]} 34. h4 {[%clk 0:00:49.9]} 34...
f5 {[%clk 0:00:37.2]} 35. Rh8 {[%clk 0:00:49.8]} 35... Nb6 {[%clk 0:00:35.3]}
36. Rb8 {[%clk 0:00:50]} 36... e5 {[%clk 0:00:31.5]} 37. Rb7+ {[%clk 0:00:49.5]}
37... Kf6 {[%clk 0:00:30.8]} 38. Rxa7 {[%clk 0:00:49.7]} 38... Nd5 {[%clk
0:00:28.9]} 39. Ra5 {[%clk 0:00:43.9]} 39... Nc7 {[%clk 0:00:25.1]} 40. Ra7
{[%clk 0:00:40.6]} 40... Nd5 {[%clk 0:00:24]} 41. Rb7 {[%clk 0:00:41.2]} 41...
f4 {[%clk 0:00:22.4]} 42. Rxb5 {[%clk 0:00:40.3]} 42... Ne7 {[%clk 0:00:17.9]}
43. g4 {[%clk 0:00:38.2]} 43... e4 {[%clk 0:00:16.6]} 44. Kd2 {[%clk 0:00:37.4]}
44... Ng6 {[%clk 0:00:16.5]} 45. h5 {[%clk 0:00:34.5]} 45... Nh4 {[%clk
0:00:16.5]} 46. g5+ {[%clk 0:00:33.3]} 46... Kg7 {[%clk 0:00:14.9]} 47. Ke2
{[%clk 0:00:33.1]} 47... e3 {[%clk 0:00:11.5]} 48. fxe3 {[%clk 0:00:32.4]} 48...
f3+ {[%clk 0:00:11.9]} 49. Kf2 {[%clk 0:00:32.3]} 1-0

[Event "Late-Titled-Tuesday-Blitz-February-13-2024"]
[Site "Chess.com"]
[Date "2024.02.13"]
[Round "5"]
[White "DonJuan_34"]
[Black "ProfessorChess101"]
[Result "0-1"]
[WhiteElo "2493"]
[BlackElo "2792"]
[TimeControl "180+1"]
[EndTime "14:56:02 PST"]
[Termination "ProfessorChess101 won by resignation"]

1. d4 {[%clk 0:03:00.9]} 1... Nf6 {[%clk 0:02:57.6]} 2. c4 {[%clk 0:03:00.2]}
2... e6 {[%clk 0:02:57.3]} 3. Nc3 {[%clk 0:02:59.5]} 3... Bb4 {[%clk 0:02:52.8]}
4. Nf3 {[%clk 0:02:59]} 4... d5 {[%clk 0:02:52]} 5. cxd5 {[%clk 0:02:55.8]} 5...
exd5 {[%clk 0:02:48.4]} 6. Bg5 {[%clk 0:02:55.4]} 6... O-O {[%clk 0:02:45.9]} 7.
e3 {[%clk 0:02:54.7]} 7... h6 {[%clk 0:02:38.4]} 8. Bh4 {[%clk 0:02:45.3]} 8...
Bg4 {[%clk 0:02:30.6]} 9. Be2 {[%clk 0:02:41.4]} 9... Nbd7 {[%clk 0:02:27]} 10.
O-O {[%clk 0:02:40.5]} 10... c6 {[%clk 0:02:27]} 11. h3 {[%clk 0:02:35.7]} 11...
Bh5 {[%clk 0:02:22.9]} 12. Ne5 {[%clk 0:02:10.3]} 12... Bxe2 {[%clk 0:02:20.3]}
13. Qxe2 {[%clk 0:02:10]} 13... Qc7 {[%clk 0:02:12.3]} 14. Nxd7 {[%clk
0:02:05.2]} 14... Nxd7 {[%clk 0:02:11.2]} 15. Bg3 {[%clk 0:02:03]} 15... Bd6
{[%clk 0:02:04.6]} 16. Bxd6 {[%clk 0:02:02]} 16... Qxd6 {[%clk 0:02:05.5]} 17.
a3 {[%clk 0:01:49.6]} 17... a5 {[%clk 0:02:02.6]} 18. Qc2 {[%clk 0:01:44.9]}
18... Rfe8 {[%clk 0:01:59.3]} 19. Rab1 {[%clk 0:01:44.4]} 19... g6 {[%clk
0:01:50.3]} 20. b4 {[%clk 0:01:43.4]} 20... axb4 {[%clk 0:01:51.2]} 21. axb4
{[%clk 0:01:43.3]} 21... b5 {[%clk 0:01:51.9]} 22. Rfd1 {[%clk 0:01:39.2]} 22...
Nb6 {[%clk 0:01:47.3]} 23. e4 {[%clk 0:01:38.8]} 23... dxe4 {[%clk 0:01:40.2]}
24. Nxe4 {[%clk 0:01:38]} 24... Qf4 {[%clk 0:01:39.5]} 25. Re1 {[%clk
0:00:53.7]} 25... Nc4 {[%clk 0:01:36.7]} 26. Rbd1 {[%clk 0:00:37.3]} 26... Rad8
{[%clk 0:01:29.6]} 27. g3 {[%clk 0:00:34.1]} 27... Qf3 {[%clk 0:01:22.4]} 28.
Qe2 {[%clk 0:00:30.2]} 28... Qxe2 {[%clk 0:01:17]} 29. Rxe2 {[%clk 0:00:30.6]}
29... Kg7 {[%clk 0:01:17.9]} 30. Nc3 {[%clk 0:00:30.2]} 30... Rxe2 {[%clk
0:01:03.8]} 31. Nxe2 {[%clk 0:00:31.1]} 31... Nb6 {[%clk 0:01:04.1]} 32. Nc3
{[%clk 0:00:29.7]} 32... Ra8 {[%clk 0:00:50.9]} 33. d5 {[%clk 0:00:23.1]} 33...
Ra3 {[%clk 0:00:46.2]} 34. Ne4 {[%clk 0:00:13.5]} 34... Nxd5 {[%clk 0:00:40]}
35. Nd6 {[%clk 0:00:14.1]} 35... Nxb4 {[%clk 0:00:36.1]} 36. Rb1 {[%clk
0:00:12.5]} 36... Nd5 {[%clk 0:00:31.6]} 37. Nxb5 {[%clk 0:00:08]} 37... cxb5
{[%clk 0:00:31.1]} 38. Rxb5 {[%clk 0:00:08.9]} 38... Nc3 {[%clk 0:00:30.3]} 39.
Rb2 {[%clk 0:00:08.9]} 39... Ra2 {[%clk 0:00:29.9]} 40. Rb3 {[%clk 0:00:07.9]}
40... Ne4 {[%clk 0:00:29.5]} 41. Rf3 {[%clk 0:00:07.1]} 41... Ng5 {[%clk
0:00:29.6]} 42. Re3 {[%clk 0:00:06.1]} 42... Nxh3+ {[%clk 0:00:29.9]} 43. Kg2
{[%clk 0:00:06.9]} 43... Ng5 {[%clk 0:00:30.5]} 44. Re5 {[%clk 0:00:05.6]} 44...
Ne6 {[%clk 0:00:29.6]} 45. g4 {[%clk 0:00:05.2]} 45... Nf4+ {[%clk 0:00:28.6]}
46. Kg3 {[%clk 0:00:05]} 46... Rxf2 {[%clk 0:00:23]} 0-1

[Event "Late-Titled-Tuesday-Blitz-February-13-2024"]
[Site "Chess.com"]
[Date "2024.02.13"]
[Round "5"]
[White "krzyzan94"]
[Black "mightysmasher"]
[Result "1-0"]
[WhiteElo "2789"]
[BlackElo "2549"]
[TimeControl "180+1"]
[EndTime "14:56:03 PST"]
[Termination "krzyzan94 won by checkmate"]

1. e4 {[%clk 0:03:00.9]} 1... e6 {[%clk 0:03:00.1]} 2. d4 {[%clk 0:02:59.7]}
2... d5 {[%clk 0:03:00.3]} 3. Nc3 {[%clk 0:02:57.5]} 3... dxe4 {[%clk
0:03:00.2]} 4. Nxe4 {[%clk 0:02:58.4]} 4... Nd7 {[%clk 0:02:59.8]} 5. Nf3 {[%clk
0:02:56]} 5... Ngf6 {[%clk 0:02:59.6]} 6. Bd3 {[%clk 0:02:56.1]} 6... c5 {[%clk
0:02:57.3]} 7. O-O {[%clk 0:02:53.3]} 7... Nxe4 {[%clk 0:02:46.8]} 8. Bxe4
{[%clk 0:02:53]} 8... Nf6 {[%clk 0:02:47.3]} 9. Bd3 {[%clk 0:02:49.2]} 9... cxd4
{[%clk 0:02:45.5]} 10. Nxd4 {[%clk 0:02:50.1]} 10... Bc5 {[%clk 0:02:45.4]} 11.
Nf3 {[%clk 0:02:48.5]} 11... O-O {[%clk 0:02:44.8]} 12. Qe2 {[%clk 0:02:48.3]}
12... b6 {[%clk 0:02:44.4]} 13. Bg5 {[%clk 0:02:45.3]} 13... Bb7 {[%clk
0:02:43.7]} 14. Rad1 {[%clk 0:02:44.9]} 14... Qc7 {[%clk 0:02:43.4]} 15. h3
{[%clk 0:02:22.6]} 15... Kh8 {[%clk 0:02:38.5]} 16. Bxf6 {[%clk 0:02:15.5]}
16... gxf6 {[%clk 0:02:37.7]} 17. Be4 {[%clk 0:02:16.2]} 17... Rg8 {[%clk
0:02:19.5]} 18. Kh1 {[%clk 0:01:47.5]} 18... Rg7 {[%clk 0:02:10.7]} 19. c3
{[%clk 0:01:46]} 19... Rag8 {[%clk 0:02:08.5]} 20. Bxb7 {[%clk 0:01:40.3]} 20...
Qxb7 {[%clk 0:02:07.6]} 21. Rg1 {[%clk 0:01:33]} 21... a5 {[%clk 0:02:04.6]} 22.
Rd3 {[%clk 0:01:28.8]} 22... f5 {[%clk 0:01:48.6]} 23. g3 {[%clk 0:01:16.3]}
23... Qe4 {[%clk 0:01:42]} 24. Rd2 {[%clk 0:01:09]} 24... Qc6 {[%clk 0:01:24.3]}
25. Kh2 {[%clk 0:01:06.7]} 25... f4 {[%clk 0:00:58.4]} 26. g4 {[%clk 0:01:01.9]}
26... f5 {[%clk 0:00:50.2]} 27. g5 {[%clk 0:00:39.3]} 27... Qe4 {[%clk
0:00:39.3]} 28. Re1 {[%clk 0:00:36.7]} 28... Qxe2 {[%clk 0:00:31.9]} 29. Rexe2
{[%clk 0:00:36.6]} 29... Rg6 {[%clk 0:00:31.7]} 30. Ne5 {[%clk 0:00:34.8]} 30...
R6g7 {[%clk 0:00:30.6]} 31. h4 {[%clk 0:00:33.3]} 31... a4 {[%clk 0:00:24.1]}
32. Nf3 {[%clk 0:00:31.5]} 32... h6 {[%clk 0:00:23.2]} 33. Rxe6 {[%clk
0:00:30.8]} 33... hxg5 {[%clk 0:00:22.4]} 34. hxg5 {[%clk 0:00:29.1]} 34... Rh7+
{[%clk 0:00:22.4]} 35. Kg2 {[%clk 0:00:28]} 35... Be7 {[%clk 0:00:22.3]} 36. g6
{[%clk 0:00:20.7]} 36... Bc5 {[%clk 0:00:21]} 37. Ne5 {[%clk 0:00:16.7]} 37...
Rh5 {[%clk 0:00:18.8]} 38. Kf3 {[%clk 0:00:16.2]} 38... Rh3+ {[%clk 0:00:17.5]}
39. Kxf4 {[%clk 0:00:15.6]} 39... Kg7 {[%clk 0:00:16.8]} 40. Rd7+ {[%clk
0:00:15]} 40... Kh8 {[%clk 0:00:15.6]} 41. Nf7+ {[%clk 0:00:14.6]} 41... Kg7
{[%clk 0:00:15.6]} 42. Nh6+ {[%clk 0:00:12.5]} 42... Be7 {[%clk 0:00:08.6]} 43.
Rdxe7+ {[%clk 0:00:12.1]} 43... Kxh6 {[%clk 0:00:07.9]} 44. Rh7# {[%clk
0:00:12.4]} 1-0

[Event "Late-Titled-Tuesday-Blitz-February-13-2024"]
[Site "Chess.com"]
[Date "2024.02.13"]
[Round "5"]
[White "SchmakAttack"]
[Black "LastHeroJr"]
[Result "1-0"]
[WhiteElo "2796"]
[BlackElo "2499"]
[TimeControl "180+1"]
[EndTime "14:56:04 PST"]
[Termination "SchmakAttack won by resignation"]

1. d4 {[%clk 0:03:00.9]} 1... d5 {[%clk 0:02:59.8]} 2. Nf3 {[%clk 0:03:00]} 2...
c6 {[%clk 0:02:59.3]} 3. c4 {[%clk 0:02:54.8]} 3... Nf6 {[%clk 0:02:58.1]} 4.
Nc3 {[%clk 0:02:53.2]} 4... e6 {[%clk 0:02:58.2]} 5. Bg5 {[%clk 0:02:48.1]} 5...
Be7 {[%clk 0:02:58]} 6. e3 {[%clk 0:02:47.4]} 6... O-O {[%clk 0:02:57.8]} 7. Qc2
{[%clk 0:02:46.3]} 7... Nbd7 {[%clk 0:02:57.7]} 8. Rc1 {[%clk 0:02:45.1]} 8...
b6 {[%clk 0:02:57.6]} 9. Bd3 {[%clk 0:02:40.3]} 9... Bb7 {[%clk 0:02:56.1]} 10.
cxd5 {[%clk 0:02:35.8]} 10... exd5 {[%clk 0:02:53.8]} 11. Ne5 {[%clk 0:02:32.4]}
11... h6 {[%clk 0:02:53.8]} 12. Bf4 {[%clk 0:02:18]} 12... Nxe5 {[%clk
0:02:53.9]} 13. Bxe5 {[%clk 0:02:14.4]} 13... Bd6 {[%clk 0:02:53.8]} 14. Bxd6
{[%clk 0:02:13.8]} 14... Qxd6 {[%clk 0:02:53.2]} 15. O-O {[%clk 0:02:11]} 15...
Rfe8 {[%clk 0:02:53.1]} 16. a3 {[%clk 0:02:06.3]} 16... Ng4 {[%clk 0:02:51.1]}
17. g3 {[%clk 0:02:06.7]} 17... Re7 {[%clk 0:02:46]} 18. b4 {[%clk 0:02:01.6]}
18... Rae8 {[%clk 0:02:45.5]} 19. Bh7+ {[%clk 0:01:41.5]} 19... Kh8 {[%clk
0:02:44.2]} 20. Bf5 {[%clk 0:01:41.5]} 20... Nf6 {[%clk 0:02:43.6]} 21. Rfe1
{[%clk 0:01:35.7]} 21... h5 {[%clk 0:02:43.8]} 22. Bh3 {[%clk 0:01:18.6]} 22...
g6 {[%clk 0:02:32.6]} 23. Qb2 {[%clk 0:01:14.7]} 23... h4 {[%clk 0:02:31.4]} 24.
a4 {[%clk 0:01:14.6]} 24... hxg3 {[%clk 0:02:30.4]} 25. hxg3 {[%clk 0:01:15.5]}
25... Kg7 {[%clk 0:02:29.6]} 26. b5 {[%clk 0:01:04.6]} 26... c5 {[%clk
0:02:26.5]} 27. dxc5 {[%clk 0:01:05]} 27... bxc5 {[%clk 0:02:27.3]} 28. Bg2
{[%clk 0:01:05.4]} 28... d4 {[%clk 0:02:18.1]} 29. Qd2 {[%clk 0:01:03.9]} 29...
Bxg2 {[%clk 0:02:17.9]} 30. Kxg2 {[%clk 0:01:04.8]} 30... Ne4 {[%clk 0:02:01.9]}
31. Nxe4 {[%clk 0:01:04.3]} 31... Rxe4 {[%clk 0:02:01.9]} 32. exd4 {[%clk
0:01:01.7]} 32... Rxd4 {[%clk 0:02:02]} 33. Qxd4+ {[%clk 0:00:50.5]} 33... cxd4
{[%clk 0:01:58.9]} 34. Rxe8 {[%clk 0:00:51]} 34... d3 {[%clk 0:01:59.4]} 35. Rd1
{[%clk 0:00:42.1]} 35... Qd5+ {[%clk 0:01:59.5]} 36. Kg1 {[%clk 0:00:42.2]}
36... Qb3 {[%clk 0:01:58.3]} 37. Ree1 {[%clk 0:00:36]} 37... Qxa4 {[%clk
0:01:58]} 38. Rxd3 {[%clk 0:00:32.8]} 38... Qxb5 {[%clk 0:01:57.9]} 39. Ra3
{[%clk 0:00:32]} 39... a5 {[%clk 0:01:55.8]} 40. Rea1 {[%clk 0:00:32.1]} 40...
a4 {[%clk 0:01:55.7]} 41. Rxa4 {[%clk 0:00:32.3]} 41... Qd5 {[%clk 0:01:55.5]}
42. Rf4 {[%clk 0:00:30.4]} 42... Qc5 {[%clk 0:01:53.8]} 43. Rb1 {[%clk
0:00:26.5]} 43... Qd5 {[%clk 0:01:51.3]} 44. Re1 {[%clk 0:00:24.2]} 44... Qc5
{[%clk 0:01:50.6]} 45. Re3 {[%clk 0:00:24]} 45... Qc1+ {[%clk 0:01:50.2]} 46.
Kg2 {[%clk 0:00:24.1]} 46... Qc6+ {[%clk 0:01:50.1]} 47. Kh2 {[%clk 0:00:22.1]}
47... Qd5 {[%clk 0:01:45]} 48. Re7 {[%clk 0:00:20.6]} 48... Qh5+ {[%clk
0:01:42.6]} 49. Kg2 {[%clk 0:00:21.1]} 49... Qd5+ {[%clk 0:01:42.6]} 50. Kg1
{[%clk 0:00:20.4]} 50... Qd1+ {[%clk 0:01:42]} 51. Kh2 {[%clk 0:00:19.1]} 51...
Qh5+ {[%clk 0:01:41.7]} 52. Kg2 {[%clk 0:00:18.5]} 52... Qd5+ {[%clk 0:01:41.8]}
53. f3 {[%clk 0:00:18.7]} 53... Qa2+ {[%clk 0:01:37.2]} 54. Kh3 {[%clk
0:00:18.7]} 54... Qd5 {[%clk 0:01:19.1]} 55. Rfxf7+ {[%clk 0:00:18.7]} 55...
Qxf7 {[%clk 0:01:18.1]} 56. Rxf7+ {[%clk 0:00:19.6]} 56... Kxf7 {[%clk 0:01:19]}
57. Kg4 {[%clk 0:00:18.8]} 57... Kf6 {[%clk 0:01:19.5]} 58. f4 {[%clk
0:00:19.3]} 58... Kf7 {[%clk 0:01:19.7]} 59. Kg5 {[%clk 0:00:17.6]} 59... Kg7
{[%clk 0:01:19.8]} 60. f5 {[%clk 0:00:17.5]} 60... gxf5 {[%clk 0:01:20]} 61.
Kxf5 {[%clk 0:00:18.4]} 61... Kf7 {[%clk 0:01:19]} 62. g4 {[%clk 0:00:17.7]}
62... Kg7 {[%clk 0:01:16.6]} 63. Kg5 {[%clk 0:00:18]} 63... Kh7 {[%clk
0:01:14.2]} 64. Kf6 {[%clk 0:00:18.3]} 64... Kg8 {[%clk 0:01:13.8]} 65. Kg6
{[%clk 0:00:18.3]} 65... Kh8 {[%clk 0:01:12.2]} 66. g5 {[%clk 0:00:15.1]} 66...
Kg8 {[%clk 0:01:12.3]} 67. Kh6 {[%clk 0:00:15.7]} 67... Kh8 {[%clk 0:01:08.8]}
68. g6 {[%clk 0:00:16]} 68... Kg8 {[%clk 0:01:09.1]} 69. g7 {[%clk 0:00:16.6]}
1-0